bitfinex-derivatives/quotes_SOLF0:USTF0_20260222
["timestamp","ask_amount","ask_price","bid_price","bid_amount"]
[1771748460686,2.47568847,85.1,85.041,4.31715537]
[1771748460887,2.47568847,85.09,85.041,4.31715537]
[1771748464090,2.47568847,85.09,85.043,4.29099603]
[1771748465695,2.47568847,85.09,85.049,4.29076264]
[1771748466792,2.47568847,85.09,85.05,10.585]
[1771748467097,2.47568847,85.09,85.051,4.2765655]
[1771748468297,2.47568847,85.09,85.053,4.2765655]
[1771748469695,2.47568847,85.09,85.056,4.27504143]
[1771748471898,2.47568847,85.09,85.058,4.26872374]
[1771748474091,2.47568847,85.09,85.06,4.26847112]
[1771748475503,10.5768,85.117,85.06,4.26847112]
[1771748475708,2.47568847,85.1,85.06,4.26847112]
[1771748477412,2.47568847,85.11,85.061,4.30181636]
[1771748478712,2.47568847,85.11,85.066,10.5831]
[1771748478911,2.47568847,85.12,85.067,4.29844391]
[1771748481308,2.47568847,85.12,85.07,4.29429038]
[1771748482415,2.47568847,85.12,85.073,4.29429038]
[1771748483009,2.47568847,85.12,85.075,4.29466547]
[1771748484317,2.47568847,85.12,85.079,4.29466547]
[1771748485914,2.47568847,85.12,85.08,10.5813]
[1771748486215,2.47568847,85.12,85.081,4.29682743]
[1771748486810,2.47568847,85.12,85.083,4.29648304]
[1771748487713,2.47568847,85.12,85.086,4.29648304]
[1771748490618,2.47568847,85.11,85.075,4.29258997]
[1771748490817,2.47568847,85.1,85.051,4.29258997]
[1771748491717,2.47568847,85.1,85.065,4.29258997]
[1771748493313,10.5766,85.119,85.065,4.29258997]
[1771748493314,2.47568847,85.11,85.065,4.29258997]
[1771748496319,2.47568847,85.1,85.065,4.29258997]
[1771748497226,2.47568847,85.11,85.065,4.29258997]
[1771748500420,10.5766,85.119,85.065,4.29258997]
[1771748502422,2.47568847,85.12,85.076,4.37955223]
[1771748509931,2.47568847,85.12,85.08,4.39385162]
[1771748518040,2.47412352,85.12,85.08,4.39385162]
[1771748521347,9.17872964,85.119,85.08,4.39385162]
[1771748521542,9.17872964,85.118,85.08,4.39385162]
[1771748521742,2.47412352,85.12,85.08,4.39385162]
[1771748521944,9.17872702,85.119,85.08,4.39385162]
[1771748522143,9.17872702,85.118,85.08,4.39385162]
[1771748522345,9.17872702,85.117,85.08,4.39385162]
[1771748522545,2.47412352,85.12,85.08,4.39385162]
[1771748522745,9.18324117,85.119,85.08,4.39385162]
[1771748522949,9.18324117,85.118,85.08,4.39385162]
[1771748523147,9.18324117,85.117,85.08,4.39385162]
[1771748523445,9.18324117,85.116,85.08,4.39385162]
[1771748523646,9.18324117,85.115,85.08,4.39385162]
[1771748523946,2.47412352,85.12,85.08,4.39385162]
[1771748524140,9.18313688,85.119,85.08,4.39385162]
[1771748524338,2.47412352,85.12,85.08,4.39385162]
[1771748524339,9.18313688,85.118,85.08,4.39385162]
[1771748524538,9.18313688,85.117,85.08,4.39385162]
[1771748524746,9.18313688,85.116,85.08,4.39385162]
[1771748524944,9.18313688,85.115,85.08,4.39385162]
[1771748525244,2.47412352,85.12,85.08,4.39385162]
[1771748525441,9.1839812,85.119,85.08,4.39385162]
[1771748525644,9.1839812,85.118,85.08,4.39385162]
[1771748525846,9.1839812,85.117,85.08,4.39385162]
[1771748526042,10.5762,85.122,85.08,4.39385162]
[1771748526237,9.18401387,85.121,85.08,4.39385162]
[1771748526443,9.18401387,85.12,85.08,4.39385162]
[1771748526744,10.5762,85.122,85.08,4.39385162]
[1771748526745,9.18401387,85.119,85.08,4.39385162]
[1771748526940,9.18401387,85.118,85.08,4.39385162]
[1771748527251,10.5762,85.122,85.08,4.39385162]
[1771748527447,9.18392147,85.121,85.08,4.39385162]
[1771748527647,9.18392147,85.12,85.08,4.39385162]
[1771748527844,9.18392147,85.119,85.08,4.39385162]
[1771748528049,9.18392147,85.118,85.08,4.39385162]
[1771748528247,10.5762,85.122,85.08,4.39385162]
[1771748528447,9.18302665,85.121,85.08,4.39385162]
[1771748528745,9.18302665,85.12,85.08,4.39385162]
[1771748528945,9.18302665,85.119,85.08,4.39385162]
[1771748529147,9.18302665,85.118,85.08,4.39385162]
[1771748529340,9.18302665,85.117,85.08,4.39385162]
[1771748529548,10.5762,85.122,85.08,4.39385162]
[1771748529745,9.18296567,85.121,85.08,4.39385162]
[1771748530048,9.18296567,85.12,85.08,4.39385162]
[1771748530250,9.18296567,85.119,85.08,4.39385162]
[1771748530452,9.18296567,85.118,85.08,4.39385162]
[1771748530649,10.5762,85.122,85.08,4.39385162]
[1771748530841,9.1829886,85.121,85.08,4.39385162]
[1771748531041,9.1829886,85.12,85.08,4.39385162]
[1771748531243,9.1829886,85.119,85.08,4.39385162]
[1771748531442,9.1829886,85.118,85.08,4.39385162]
[1771748531744,2.47412352,85.13,85.08,4.39385162]
[1771748531941,9.18296368,85.129,85.08,4.39385162]
[1771748532147,9.18296368,85.128,85.08,4.39385162]
[1771748532449,9.18296368,85.127,85.08,4.39385162]
[1771748532644,9.18296368,85.126,85.08,4.39385162]
[1771748532850,9.18296368,85.125,85.08,4.39385162]
[1771748533051,2.47412352,85.13,85.08,4.39385162]
[1771748533052,9.18296368,85.124,85.08,4.39385162]
[1771748533251,9.18296368,85.123,85.08,4.39385162]
[1771748533449,9.18296368,85.122,85.08,4.39385162]
[1771748533743,9.18296368,85.121,85.08,4.39385162]
[1771748533949,9.18296368,85.12,85.08,4.39385162]
[1771748534149,9.18296368,85.119,85.08,4.39385162]
[1771748534349,9.18296368,85.118,85.08,4.39385162]
[1771748534551,2.47412352,85.13,85.08,4.39385162]
[1771748534750,9.18235988,85.129,85.08,4.39385162]
[1771748534953,9.18235988,85.128,85.08,4.39385162]
[1771748535156,9.18235988,85.127,85.08,4.39385162]
[1771748535352,2.47412352,85.13,85.08,4.39385162]
[1771748535353,9.18235988,85.126,85.08,4.39385162]
[1771748535551,9.18235988,85.125,85.08,4.39385162]
[1771748535752,9.18235988,85.124,85.08,4.39385162]
[1771748536053,9.18235988,85.123,85.08,4.39385162]
[1771748536254,9.18235988,85.122,85.08,4.39385162]
[1771748536449,9.18235988,85.121,85.08,4.39385162]
[1771748536653,9.18235988,85.12,85.08,4.39385162]
[1771748536858,9.18235988,85.119,85.08,4.39385162]
[1771748537053,9.18235988,85.118,85.08,4.39385162]
[1771748537253,9.18235988,85.117,85.08,4.39385162]
[1771748537453,9.18235988,85.116,85.08,4.39385162]
[1771748537652,9.18235988,85.115,85.08,4.39385162]
[1771748537856,2.47412352,85.13,85.08,4.39385162]
[1771748538057,9.18239548,85.129,85.08,4.39385162]
[1771748538355,9.18239548,85.128,85.08,4.39385162]
[1771748538556,9.18239548,85.127,85.08,4.39385162]
[1771748538756,9.18239548,85.126,85.08,4.39385162]
[1771748538957,9.18239548,85.125,85.08,4.39385162]
[1771748539159,9.18239548,85.124,85.08,4.39385162]
[1771748539456,9.18239548,85.123,85.08,4.39385162]
[1771748539657,9.18239548,85.122,85.08,4.39385162]
[1771748539859,9.18239548,85.121,85.08,4.39385162]
[1771748540159,9.18239548,85.12,85.08,4.39385162]
[1771748540457,2.47412352,85.13,85.08,4.39385162]
[1771748540458,9.18239548,85.119,85.08,4.39385162]
[1771748540656,9.18239548,85.118,85.08,4.39385162]
[1771748540957,9.18239548,85.117,85.08,4.39385162]
[1771748541159,9.18239548,85.116,85.08,4.39385162]
[1771748541356,9.18239548,85.115,85.08,4.39385162]
[1771748541556,2.47412352,85.13,85.08,4.39385162]
[1771748541757,9.18348912,85.129,85.08,4.39385162]
[1771748541956,9.18348912,85.128,85.08,4.39385162]
[1771748542153,9.18348912,85.127,85.08,4.39385162]
[1771748542453,9.18348912,85.126,85.08,4.39385162]
[1771748542658,9.18348912,85.125,85.08,4.39385162]
[1771748542859,9.18348912,85.124,85.08,4.39385162]
[1771748543053,9.18348912,85.123,85.08,4.39385162]
[1771748543260,2.47412352,85.13,85.08,4.39385162]
[1771748543261,9.18348912,85.122,85.08,4.39385162]
[1771748543460,9.18348912,85.121,85.08,4.39385162]
[1771748543759,9.18348912,85.12,85.08,4.39385162]
[1771748543961,2.47412352,85.13,85.08,4.39385162]
[1771748543962,9.18348912,85.119,85.08,4.39385162]
[1771748544159,9.18348912,85.118,85.08,4.39385162]
[1771748544360,9.18348912,85.117,85.08,4.39385162]
[1771748544562,9.18348912,85.116,85.08,4.39385162]
[1771748544761,2.47412352,85.13,85.08,4.39385162]
[1771748544954,9.18468535,85.129,85.08,4.39385162]
[1771748545153,9.18468535,85.128,85.08,4.39385162]
[1771748545361,9.18468535,85.127,85.08,4.39385162]
[1771748545564,9.18468535,85.126,85.08,4.39385162]
[1771748545758,9.18468535,85.125,85.08,4.39385162]
[1771748545963,9.18468535,85.124,85.08,4.39385162]
[1771748546163,9.18468535,85.123,85.08,4.39385162]
[1771748546361,9.18468535,85.122,85.08,4.39385162]
[1771748546560,9.18468535,85.121,85.08,4.39385162]
[1771748546762,9.18468535,85.12,85.08,4.39385162]
[1771748546962,9.18468535,85.119,85.08,4.39385162]
[1771748547160,2.47412352,85.13,85.08,4.39385162]
[1771748547463,9.18574004,85.129,85.08,4.39385162]
[1771748547662,9.18574004,85.128,85.08,4.39385162]
[1771748547865,9.18574004,85.127,85.08,4.39385162]
[1771748548066,9.18574004,85.126,85.08,4.39385162]
[1771748548264,9.18574004,85.125,85.08,4.39385162]
[1771748548563,9.18574004,85.124,85.08,4.39385162]
[1771748548764,9.18574004,85.123,85.08,4.39385162]
[1771748548964,9.18574004,85.122,85.08,4.39385162]
[1771748549167,9.18574004,85.121,85.08,4.39385162]
[1771748549361,2.47412352,85.13,85.08,4.39385162]
[1771748549565,9.18503165,85.129,85.08,4.39385162]
[1771748549870,2.47412352,85.12,85.08,4.39385162]
[1771748567877,2.47412352,85.13,85.08,4.39385162]
[1771748568078,9.17793793,85.129,85.081,4.38470683]
[1771748568276,9.17793793,85.128,85.081,4.38470683]
[1771748568477,9.17793793,85.127,85.081,4.38470683]
[1771748568681,9.17793793,85.126,85.082,4.38138899]
[1771748568987,2.47412352,85.13,85.082,4.38138899]
[1771748569183,9.17778417,85.129,85.082,4.38138899]
[1771748569488,9.17778417,85.128,85.082,4.38138899]
[1771748569683,9.17778417,85.127,85.082,4.38138899]
[1771748569884,9.17711938,85.126,85.082,4.38138899]
[1771748570187,2.47412352,85.13,85.082,4.38138899]
[1771748570488,9.17659476,85.129,85.082,4.38138899]
[1771748570690,9.17659476,85.128,85.084,4.37382237]
[1771748570879,2.47412352,85.13,85.084,4.37382237]
[1771748571085,9.17667026,85.129,85.084,4.37382237]
[1771748571383,9.17667026,85.128,85.084,4.37382237]
[1771748571582,2.47412352,85.13,85.084,4.37382237]
[1771748571786,9.17579158,85.129,85.084,4.37382237]
[1771748571986,9.17579158,85.128,85.084,4.37382237]
[1771748572289,2.47412352,85.13,85.087,4.37382237]
[1771748572490,9.17514998,85.129,85.087,4.37382237]
[1771748572790,2.47412352,85.13,85.087,4.37382237]
[1771748573089,9.17520708,85.129,85.087,4.37382237]
[1771748573289,2.47412352,85.13,85.087,4.37382237]
[1771748573488,9.1745726,85.129,85.087,4.37382237]
[1771748573690,2.47412352,85.13,85.087,4.37382237]
[1771748573893,9.1745721,85.129,85.087,4.37382237]
[1771748574092,2.47412352,85.13,85.087,4.37382237]
[1771748574390,9.17400454,85.129,85.087,4.37382237]
[1771748574694,9.17394745,85.128,85.087,4.37382237]
[1771748574895,2.47412352,85.13,85.087,4.37382237]
[1771748575087,9.17394745,85.129,85.087,4.37382237]
[1771748575392,9.17394745,85.128,85.087,4.37382237]
[1771748575592,2.47412352,85.13,85.087,4.37382237]
[1771748575891,9.17355652,85.129,85.087,4.37382237]
[1771748576091,2.47412352,85.13,85.087,4.37382237]
[1771748576293,9.1732168,85.129,85.087,4.37382237]
[1771748576594,2.47412352,85.13,85.087,4.37382237]
[1771748576793,9.17321679,85.129,85.087,4.37382237]
[1771748576994,2.47412352,85.13,85.087,4.37382237]
[1771748577297,9.17291547,85.129,85.087,4.37382237]
[1771748577490,2.47412352,85.13,85.087,4.37382237]
[1771748577692,9.17291828,85.129,85.087,4.37382237]
[1771748577995,2.47412352,85.13,85.087,4.37382237]
[1771748578195,9.17265467,85.129,85.087,4.37382237]
[1771748578391,2.47412352,85.13,85.087,4.37382237]
[1771748578592,9.17265542,85.129,85.087,4.37382237]
[1771748578889,2.47412352,85.13,85.087,4.37382237]
[1771748579196,9.17265616,85.129,85.087,4.37382237]
[1771748579396,2.47412352,85.13,85.087,4.37382237]
[1771748579592,9.1724376,85.129,85.087,4.37382237]
[1771748579896,2.47355142,85.13,85.087,4.37382237]
[1771748580195,9.1724376,85.129,85.087,4.37382237]
[1771748580391,2.47355142,85.13,85.087,4.37382237]
[1771748580695,9.17237404,85.129,85.087,4.37382237]
[1771748580989,9.17237404,85.129,85.038,35.28]
[1771748580990,2.47355142,85.1,85.062,4.37121819]
[1771748581190,277.55472861,85.149,85.062,4.37121819]
[1771748581191,2.47355142,85.09,85.062,4.37121819]
[1771748581394,2.47355142,85.09,85.009,21.1804]
[1771748581395,2.47355142,85.1,85.041,4.37121819]
[1771748581591,9.16701786,85.099,85.041,4.37121819]
[1771748581792,2.47355142,85.09,85.041,4.37121819]
[1771748582189,2.47355142,85.08,85.042,4.37121819]
[1771748584399,10.94310043,85.111,85.032,10.5874]
[1771748584400,2.47355142,85.07,85.032,4.31423942]
[1771748585695,10.5818,85.078,85.032,4.31423942]
[1771748587296,2.47355142,85.07,85.032,4.31423942]
[1771748587500,10.5818,85.078,85.032,4.31423942]
[1771748591607,10.5818,85.078,85.034,4.32727226]
[1771748600713,2.47355142,85.07,85.021,4.35631777]
[1771748601012,10.5834,85.065,85.021,4.35631777]
[1771748603818,10.5844,85.056,85.021,4.35631777]
[1771748604013,10.5844,85.056,85.011,4.35405232]
[1771748605021,14.64153772,85.115,85.011,4.35405232]
[1771748605022,10.5858,85.045,85.011,4.35405232]
[1771748610325,10.5868,85.037,84.997,4.33911684]
[1771748610524,10.5868,85.037,84.977,442.35972481]
[1771748610525,2.47355142,85.03,84.986,4.33911684]
[1771748612225,10.5878,85.029,84.986,4.33911684]
[1771748614728,10.5878,85.029,84.938,11.97465656]
[1771748614729,10.5891,85.019,84.978,4.34455515]
[1771748616626,2.47355142,85.04,84.99,2.47355142]
[1771748616826,2.47355142,85.05,85.001,4.33734971]
[1771748617331,10.5866,85.039,85.001,4.33734971]
[1771748620832,10.5879,85.029,85.001,4.33734971]
[1771748624631,10.5867,85.038,85.001,4.33734971]
[1771748637542,190.07414913,85.056,84.986,4.30001642]
[1771748637543,13.06125142,85.03,84.986,4.30001642]
[1771748637741,2.47355142,85.02,84.986,4.30001642]
[1771748638334,2.47355142,85.03,84.986,4.30001642]
[1771748639645,10.5884,85.025,84.986,4.30001642]
[1771748642940,2.47969334,85.02,84.986,4.30001642]
[1771748643435,2.47969334,85.02,84.966,10.5956]
[1771748643743,2.47969334,85.02,84.967,4.26923827]
[1771748643945,2.47969334,85.01,84.967,4.26923827]
[1771748655752,10.5898,85.013,84.967,4.26923827]
[1771748658559,2.47969334,84.99,84.951,271.88484232]
[1771748658753,2.47969334,84.98,84.933,4.31111187]
[1771748669360,10.594,84.979,84.933,4.31111187]
[1771748670066,13.07479334,84.97,84.933,4.31111187]
[1771748670869,2.47969334,84.96,84.918,4.28003936]
[1771748671859,13.07609334,84.96,84.918,4.28003936]
[1771748674862,13.07609334,84.96,84.862,299.0]
[1771748674863,2.47969334,84.95,84.891,4.2555301]
[1771748675064,2.47969334,84.94,84.891,4.2555301]
[1771748675261,2.47969334,84.95,84.891,4.2555301]
[1771748676472,2.47969334,84.95,84.901,4.2555301]
[1771748676665,10.5979,84.948,84.901,4.2555301]
[1771748677963,2.47969334,84.95,84.867,2.04893903]
[1771748677964,10.5965,84.959,84.911,4.26081638]
[1771748684473,10.5952,84.97,84.931,4.22324504]
[1771748686367,13.07489334,84.97,84.931,4.22324504]
[1771748693784,10.5952,84.97,84.931,4.22324504]
[1771748701498,13.07489334,84.97,84.931,4.22324504]
[1771748701996,13.07815883,84.97,84.931,4.22324504]
[1771748705000,2.48295883,84.97,84.931,4.22324504]
[1771748716714,2.48295883,84.97,84.942,0.07433959]
[1771748718204,10.5932,84.985,84.942,0.07433959]
[1771748718508,2.48295883,84.97,84.942,0.07433959]
[1771748718704,2.48295883,84.97,84.94,4.15117082]
[1771748723708,2.48295883,84.97,84.93,4.17129515]
[1771748724817,2.48295883,84.98,84.93,4.17129515]
[1771748725816,2.48295883,84.97,84.93,4.17129515]
[1771748727916,2.48295883,84.96,84.93,4.17129515]
[1771748728119,10.5944,84.976,84.919,10.6013]
[1771748728120,2.48295883,84.95,84.92,4.16156513]
[1771748728418,2.48295883,84.96,84.92,4.16156513]
[1771748732713,2.48295883,84.96,84.91,2.48295883]
[1771748732714,2.48295883,84.94,84.909,4.11749207]
[1771748732920,2.48295883,84.94,84.899,4.11749207]
[1771748738818,10.5967,84.958,84.901,4.10434591]
[1771748739024,2.48295883,84.95,84.901,4.10434591]
[1771748740219,2.48295883,84.94,84.901,4.10434591]
[1771748741125,2.48295883,84.94,84.89,2.48295883]
[1771748741126,10.599,84.939,84.89,4.14022903]
[1771748741324,2.48295883,84.94,84.891,4.14022903]
[1771748742320,13.08195883,84.94,84.891,4.14022903]
[1771748742624,2.48295883,84.93,84.891,4.14022903]
[1771748744022,13.08195883,84.94,84.891,4.14022903]
[1771748745125,13.08195883,84.94,84.907,0.07431667]
[1771748750916,2.48295883,84.93,84.907,0.07431667]
[1771748756026,213.28046106,84.971,84.907,0.07431667]
[1771748756027,2.48295883,84.92,84.907,0.07431667]
[1771748756224,2.48295883,84.92,84.872,10.6073]
[1771748756225,2.48295883,84.92,84.873,4.12984553]
[1771748756924,2.48295883,84.92,84.876,4.1224969]
[1771748758832,10.6004,84.928,84.88,2.48295883]
[1771748759033,10.6004,84.928,84.881,4.14824779]
[1771748759627,2.48295883,84.92,84.881,4.14824779]
[1771748760329,2.48295883,84.91,84.881,4.14824779]
[1771748762539,0.07473788,84.904,84.881,4.14824779]
[1771748763938,0.07473788,84.904,84.863,4.14190857]
[1771748763939,2.48751948,84.89,84.863,4.14190857]
[1771748765841,2.48751948,84.9,84.863,4.14190857]
[1771748766836,14.64153772,84.954,84.863,4.14190857]
[1771748766837,2.48751948,84.91,84.863,4.14190857]
[1771748767741,2.48751948,84.91,84.866,4.12697664]
[1771748769234,0.07434256,84.896,84.866,4.12697664]
[1771748771840,0.07434256,84.896,84.869,4.12249059]
[1771748772039,2.48751948,84.92,84.869,4.12249059]
[1771748776037,14.64153772,84.966,84.869,4.12249059]
[1771748776038,2.48751948,84.91,84.869,4.12249059]
[1771748776646,2.48751948,84.89,84.856,4.11722196]
[1771748776840,2.48751948,84.88,84.845,17.22803872]
[1771748778045,2.48751948,84.87,84.845,17.22803872]
[1771748779644,2.48751948,84.88,84.845,17.22803872]
[1771748780046,2.48751948,84.88,84.845,21.29828106]
[1771748786651,2.48751948,84.89,84.846,4.06435271]
[1771748787643,161.31597912,84.919,84.845,17.22803872]
[1771748787644,10.6032,84.905,84.851,4.06435271]
[1771748787846,2.48751948,84.9,84.851,4.06435271]
[1771748788851,10.604,84.899,84.851,4.06435271]
[1771748789849,161.31597912,84.919,84.851,4.06435271]
[1771748790055,161.31597912,84.919,84.845,17.22803872]
[1771748790056,10.6024,84.912,84.87,2.48751948]
[1771748790245,10.6024,84.912,84.871,4.04916226]
[1771748792853,2.48751948,84.91,84.871,4.04916226]
[1771748797566,2.48751948,84.91,84.882,0.07439791]
[1771748799072,2.48751948,84.91,84.882,4.11700161]
[1771748799469,161.31597912,84.919,84.882,4.11700161]
[1771748809172,10.6031,84.906,84.854,4.05053914]
[1771748809474,161.31597912,84.919,84.846,4.08773809]
[1771748809475,2.48751948,84.88,84.846,4.08773809]
[1771748809776,2.48751948,84.87,84.846,4.08773809]
[1771748809977,2.48751948,84.87,84.845,17.22803872]
[1771748811275,2.48751948,84.86,84.845,17.22803872]
[1771748811979,10.6056,84.886,84.845,17.22803872]
[1771748812372,2.48751948,84.86,84.845,17.22803872]
[1771748812579,2.48751948,84.87,84.845,17.22803872]
[1771748815888,2.48751948,84.88,84.845,17.22803872]
[1771748816379,2.48751948,84.88,84.846,4.07203849]
[1771748820690,0.07478785,84.871,84.846,4.07203849]
[1771748828390,0.07478785,84.871,84.845,17.22803872]
[1771748828391,2.48789583,84.87,84.845,17.22803872]
[1771748829286,2.48789583,84.86,84.845,3.872e-05]
[1771748832392,0.07478785,84.871,84.845,3.872e-05]
[1771748832586,0.07478785,84.871,84.845,4.21807182]
[1771748836894,2.48789583,84.89,84.845,4.21807182]
[1771748838594,2.48789583,84.87,84.845,3.872e-05]
[1771748839498,2.48789583,84.86,84.845,3.872e-05]
[1771748840296,13.09549583,84.87,84.845,3.872e-05]
[1771748841700,13.09549583,84.87,84.812,4.18175105]
[1771748841701,2.48789583,84.85,84.812,4.18175105]
[1771748842991,0.0746931,84.839,84.812,4.18175105]
[1771748859213,2.48789583,84.86,84.817,4.17032323]
[1771748862125,2.48789583,84.85,84.817,4.17032323]
[1771748862526,13.09679583,84.86,84.817,4.17032323]
[1771748870037,13.09679583,84.86,84.83,0.07493468]
[1771748879948,9.16808656,84.884,84.831,4.23804298]
[1771748880152,9.16808656,84.883,84.831,4.23804298]
[1771748880349,9.16808656,84.882,84.831,4.23804298]
[1771748880549,9.16808656,84.881,84.831,4.23804298]
[1771748880847,10.6064,84.88,84.831,4.23804298]
[1771748881051,2.48789583,84.89,84.841,4.31608154]
[1771748884154,2.48789583,84.89,84.791,35.33]
[1771748884155,10.6038,84.901,84.851,4.37177497]
[1771748884356,2.48789583,84.9,84.851,4.37177497]
[1771748885858,2.48691969,84.9,84.851,4.37177497]
[1771748887359,2.48691969,84.9,84.867,0.07435453]
[1771748892259,2.48691969,84.9,84.867,4.48062117]
[1771748892463,161.31597912,84.919,84.871,4.40626664]
[1771748894565,161.31597912,84.919,84.877,4.3754218]
[1771748895164,2.48691969,84.93,84.887,4.39857244]
[1771748896570,2.48691969,84.95,84.891,4.39857244]
[1771748896768,2.48691969,84.94,84.891,4.39857244]
[1771748897668,2.48691969,84.94,84.896,4.41970809]
[1771748899662,2.48691969,84.94,84.91,0.07472001]
[1771748900367,2.48691969,84.94,84.91,4.49620132]
[1771748902173,10.5972,84.954,84.91,4.49620132]
[1771748902369,2.48691969,84.94,84.91,4.49620132]
[1771748903773,2.48691969,84.95,84.91,4.49620132]
[1771748908973,2.48691969,84.94,84.91,4.49620132]
[1771748910674,2.48691969,84.92,84.893,4.36284864]
[1771748918482,0.07426335,84.915,84.893,4.36284864]
[1771748919985,2.48691969,84.93,84.893,4.36284864]
[1771748920283,2.48691969,84.94,84.893,4.36284864]
[1771748920585,10.5985,84.943,84.893,4.36284864]
[1771748920783,2.48691969,84.93,84.893,4.36284864]
[1771748924084,10.5985,84.943,84.893,4.36284864]
[1771748924085,2.48691969,84.94,84.893,4.36284864]
[1771748925587,2.48691969,84.95,84.898,4.28120321]
[1771748926689,21.1868,84.984,84.9,4.30429612]
[1771748926690,2.48691969,84.94,84.9,4.30429612]
[1771748932395,2.48691969,84.94,84.912,0.07435271]
[1771748939402,2.48691969,84.94,84.913,4.27668642]
[1771748940203,10.5967,84.958,84.913,4.27668642]
[1771748942710,2.48691969,84.96,84.916,4.43391069]
[1771748947914,2.48343627,84.96,84.916,4.43391069]
[1771748948109,2.48343627,84.96,84.92,4.44099563]
[1771748948309,2.48343627,84.97,84.921,4.44099563]
[1771748948513,9.10412578,84.969,84.921,4.44099563]
[1771748948814,2.48343627,84.97,84.921,4.44099563]
[1771748949013,9.10412578,84.969,84.921,4.44099563]
[1771748949214,2.48343627,84.97,84.921,4.44099563]
[1771748949416,9.10317431,84.969,84.921,4.44099563]
[1771748949615,2.48343627,84.97,84.921,4.44099563]
[1771748949914,9.10317322,84.969,84.921,4.44099563]
[1771748950115,2.48343627,84.97,84.921,4.44099563]
[1771748950313,9.10229259,84.969,84.921,4.44099563]
[1771748950507,2.48343627,84.96,84.921,4.44099563]
[1771748951906,9.10145566,84.972,84.921,4.44099563]
[1771748952116,2.48343627,84.96,84.921,4.44099563]
[1771748952617,2.48343627,84.95,84.921,4.44099563]
[1771748953817,2.48343627,84.95,84.927,0.07431731]
[1771748957517,2.48343627,84.96,84.927,0.07431731]
[1771748964723,2.48343627,84.95,84.927,0.07431731]
[1771748966519,2.48343627,84.96,84.927,0.07431731]
[1771748967217,2.48343627,84.96,84.918,4.63515612]
[1771748967621,2.48343627,84.97,84.919,4.63796513]
[1771748967821,9.10975028,84.969,84.919,4.63796513]
[1771748968022,9.10975028,84.968,84.919,4.63796513]
[1771748968223,2.48343627,84.97,84.919,4.63796513]
[1771748968524,2.48343627,84.96,84.919,4.63796513]
[1771748969822,2.48343627,84.97,84.919,4.63796513]
[1771748970020,9.11358859,84.969,84.922,4.67792559]
[1771748970319,2.48343627,84.97,84.922,4.67792559]
[1771748970320,9.11358859,84.968,84.922,4.67792559]
[1771748970527,9.11358859,84.967,84.922,4.67792559]
[1771748970716,9.11358859,84.966,84.922,4.67792559]
[1771748970922,2.48343627,84.97,84.922,4.67792559]
[1771748971224,9.11606513,84.969,84.922,4.67792559]
[1771748971425,9.11606513,84.968,84.922,4.67792559]
[1771748971619,9.11606513,84.967,84.922,4.67792559]
[1771748971816,10.5947,84.974,84.922,4.67792559]
[1771748971817,9.11606513,84.966,84.922,4.67792559]
[1771748972119,10.5947,84.974,84.922,4.67792559]
[1771748972326,9.11673689,84.973,84.922,4.67792559]
[1771748972528,2.48343627,84.97,84.922,4.67792559]
[1771748972717,9.11673689,84.969,84.922,4.67792559]
[1771748972919,9.11673689,84.968,84.922,4.67792559]
[1771748973215,9.11673689,84.967,84.922,4.67792559]
[1771748973415,9.11673689,84.966,84.922,4.67792559]
[1771748973622,2.48343627,84.97,84.922,4.67792559]
[1771748973822,9.11720508,84.969,84.922,4.67792559]
[1771748974022,9.11720508,84.968,84.922,4.67792559]
[1771748974320,9.11720508,84.967,84.922,4.67792559]
[1771748974616,9.11720508,84.966,84.922,4.67792559]
[1771748974821,2.48343627,84.97,84.922,4.67792559]
[1771748975126,9.11777511,84.969,84.922,4.67792559]
[1771748975327,9.11777511,84.968,84.922,4.67792559]
[1771748975526,9.11777511,84.967,84.922,4.67792559]
[1771748975728,9.11777511,84.966,84.922,4.67792559]
[1771748975929,9.11777511,84.965,84.922,4.67792559]
[1771748976226,9.11777511,84.964,84.922,4.67792559]
[1771748976430,2.48343627,84.97,84.922,4.67792559]
[1771748976727,9.11910159,84.969,84.922,4.67792559]
[1771748976924,9.11910159,84.968,84.922,4.67792559]
[1771748977120,9.11910159,84.967,84.922,4.67792559]
[1771748977327,9.11910159,84.966,84.922,4.67792559]
[1771748977522,9.11910159,84.965,84.922,4.67792559]
[1771748977726,9.11910159,84.964,84.922,4.67792559]
[1771748978028,9.11910159,84.963,84.922,4.67792559]
[1771748978226,9.11910159,84.962,84.922,4.67792559]
[1771748978427,2.48343627,84.97,84.922,4.67792559]
[1771748978625,2.48343627,84.96,84.922,4.67792559]
[1771748978824,2.48343627,84.96,84.907,10.6029]
[1771748978825,2.48343627,84.96,84.908,4.68947159]
[1771748980328,2.48343627,84.97,84.914,4.68947159]
[1771748980627,9.12322536,84.969,84.914,4.68947159]
[1771748980826,9.12322536,84.969,84.91,2.48343627]
[1771748980827,19.71872536,84.968,84.917,4.66296388]
[1771748981023,9.12322536,84.967,84.917,4.66296388]
[1771748981326,9.12322536,84.966,84.917,4.66296388]
[1771748981526,9.12322536,84.965,84.917,4.66296388]
[1771748981727,19.71912536,84.964,84.917,4.66296388]